bitfinex-derivatives/quotes_ETHF0:USTF0_20251211
["timestamp","ask_amount","ask_price","bid_price","bid_amount"]
[1765488424205,3.2078,3247.4,3247.3,2.79646]
[1765488424400,4.9748,3247.4,3247.3,0.15396]
[1765488424606,6.7418,3247.4,3247.3,0.15396]
[1765488425008,1.738,3246.9,3246.8,0.00461489]
[1765488425497,1.738,3246.9,3246.8,0.15859489]
[1765488426006,3.476,3246.9,3246.8,0.00461489]
[1765488426407,3.476,3246.9,3245.7,3.80796971]
[1765488426408,3.4088,3246.3,3245.9,3.2078]
[1765488426606,3.4088,3246.1,3245.6,0.15403]
[1765488427209,3.4088,3246.1,3245.5,4.6578]
[1765488427210,3.3512,3245.6,3245.5,4.6578]
[1765488427400,1.67958146,3245.6,3245.5,7.3003]
[1765488427600,3.20716657,3245.6,3245.5,6.7528]
[1765488428605,4.88106657,3245.6,3245.5,4.0925]
[1765488428809,3.20716657,3245.6,3245.5,6.7528]
[1765488430313,3.20716657,3245.6,3245.5,10.11464]
[1765488430511,0.00398146,3245.6,3245.5,10.11464]
[1765488431911,3.2078,3246.3,3246.2,5.3028]
[1765488432109,6.41098511,3246.3,3246.2,5.3028]
[1765488432610,7.97448511,3246.3,3246.1,0.15401]
[1765488432811,1.5635,3246.2,3246.1,0.15401]
[1765488433014,6.4149047,3246.3,3246.1,2.79651]
[1765488433507,1.5352,3246.2,3246.1,0.15401]
[1765488433909,1.5352,3246.2,3246.1,2.79651]
[1765488434910,1.5352,3246.2,3246.1,0.15401]
[1765488435112,3.0157,3246.2,3246.1,0.15401]
[1765488436816,2.8488,3246.1,3246.0,1.45]
[1765488437120,1.4244,3246.1,3246.0,4.0649]
[1765488437514,2.8488,3246.1,3246.0,1.45]
[1765488437822,2.821,3246.1,3246.0,1.45]
[1765488439124,6.4149047,3246.3,3245.7,0.15403]
[1765488439125,2.7656,3245.8,3245.7,0.15403]
[1765488443428,2.5174,3245.5,3245.4,0.00263511]
[1765488443725,8.00253669,3245.5,3245.4,0.00263511]
[1765488445918,6.74383669,3245.5,3245.4,2.58843511]
[1765488446125,7.92083669,3245.5,3245.4,2.58843511]
[1765488446326,4.4665,3245.5,3245.4,2.58843511]
[1765488446522,5.6435,3245.5,3245.4,2.58843511]
[1765488446830,5.6435,3245.5,3245.4,0.00263511]
[1765488447719,2.246,3244.9,3244.8,1.45]
[1765488447920,4.52333669,3244.9,3244.8,1.45]
[1765488448723,4.52333669,3244.9,3244.8,1.60638548]
[1765488448924,2.27733669,3245.3,3244.8,6.69338548]
[1765488449522,2.27733669,3245.3,3244.9,0.15407]
[1765488449723,2.1662,3245.0,3244.9,0.15407]
[1765488450321,1.0965,3245.0,3244.9,2.73987]
[1765488450520,2.27733669,3245.3,3245.2,5.087]
[1765488450719,4.2775,3245.5,3245.4,2.5858]
[1765488450926,4.2775,3245.5,3245.4,5.087]
[1765488451128,0.00461489,3245.8,3245.7,5.087]
[1765488451322,1.04761489,3245.8,3245.7,5.087]
[1765488451628,0.00461489,3245.8,3245.7,5.24103]
[1765488451825,3.2078,3245.8,3245.7,5.24103]
[1765488452424,3.2078,3246.4,3246.3,5.087]
[1765488452628,5.7767,3246.4,3246.3,5.087]
[1765488453126,5.7767,3246.8,3246.7,2.5858]
[1765488453329,3.2078,3246.8,3246.5,6.7376]
[1765488453529,5.77984403,3246.8,3246.7,2.5858]
[1765488454032,0.00314403,3246.8,3246.7,5.24099]
[1765488454226,5.63993662,3247.2,3247.0,6.89157]
[1765488454426,3.2078,3247.6,3247.1,5.24097]
[1765488455226,3.2078,3247.6,3247.1,5.24390045]
[1765488455428,5.78002912,3247.6,3247.5,4.2364]
[1765488456533,8.51882912,3247.6,3247.5,1.6506]
[1765488456726,8.51882912,3247.6,3247.1,0.15690045]
[1765488457726,0.00332912,3247.6,3247.5,6.7376]
[1765488458523,0.00332912,3247.6,3247.5,6.89155]
[1765488458725,5.31102912,3247.6,3247.5,4.39035]
[1765488458930,5.31102912,3247.6,3247.5,0.15395]
[1765488461633,0.00332912,3247.6,3247.5,6.89155]
[1765488465739,2.57222912,3247.6,3247.5,6.89155]
[1765488467851,5.31102912,3247.6,3247.5,0.15395]
[1765488468246,5.3077,3247.4,3247.3,3.2078]
[1765488468553,5.3077,3247.2,3247.1,0.00293045]
[1765488471955,5.48513669,3247.4,3246.4,3.2078]
[1765488471956,5.0632,3246.5,3246.4,3.2078]
[1765488472250,5.0632,3246.3,3246.2,0.15401]
[1765488472447,5.0632,3245.9,3245.8,5.6262]
[1765488472646,5.0632,3245.9,3245.8,3.2078]
[1765488473054,5.0632,3245.9,3245.8,3.21119322]
[1765488473549,5.0632,3245.9,3245.8,3.36522322]
[1765488473746,5.0632,3245.9,3245.8,0.15742322]
[1765488474253,5.0632,3245.9,3245.8,0.00339322]
[1765488474551,2.27733669,3246.4,3245.8,5.15582322]
[1765488475046,2.4683,3245.9,3245.8,5.15582322]
[1765488475245,2.27733669,3246.4,3246.0,6.4721]
[1765488475447,2.27733669,3246.4,3246.0,6.62612]
[1765488475851,2.27733669,3246.4,3246.1,5.15241]
[1765488476046,2.4683,3246.4,3246.3,4.9984]
[1765488476247,2.4683,3246.4,3246.3,2.4184]
[1765488476949,5.0632,3246.3,3246.2,0.15401]
[1765488477149,5.0632,3245.9,3245.8,0.00339322]
[1765488479654,3.2078,3246.2,3245.8,5.15582322]
[1765488481143,2.4683,3246.2,3246.1,2.4184]
[1765488481350,3.2078,3246.6,3246.1,4.9984]
[1765488481855,2.4683,3246.2,3246.1,4.9984]
[1765488482651,2.4683,3246.1,3246.0,4.04612]
[1765488482854,5.6761,3246.6,3246.5,6.62609]
[1765488483057,3.2078,3246.6,3246.5,6.62609]
[1765488483257,3.2078,3247.0,3246.6,0.15399]
[1765488483756,5.48513669,3247.0,3246.6,0.15399]
[1765488485050,2.4683,3246.7,3246.6,5.15239]
[1765488485253,5.48513669,3247.0,3246.6,5.15239]
[1765488485758,2.4683,3246.9,3246.8,0.15398]
[1765488485959,2.4683,3246.9,3246.8,5.15238]
[1765488486261,0.00462228,3247.7,3246.8,5.15238]
[1765488486262,2.47162912,3247.6,3247.5,3.8921]
[1765488486450,2.47162912,3247.6,3247.5,6.4721]
[1765488486451,0.00332912,3247.6,3247.5,6.4721]
[1765488486652,0.00332912,3247.6,3247.5,6.87913743]
[1765488487757,0.00332912,3247.6,3246.7,3.80796971]
[1765488487758,5.0632,3247.3,3246.7,0.15398]
[1765488488061,3.2078,3247.2,3247.1,4.9984]
[1765488488256,5.0632,3247.1,3247.0,1.62767]
[1765488488855,5.0632,3247.1,3247.0,0.15397]
[1765488488856,7.34053669,3247.1,3247.0,0.15397]
[1765488489862,7.34053669,3247.1,3247.0,4.04607]
[1765488490060,2.4683,3247.1,3247.0,6.62607]
[1765488490254,2.4683,3247.5,3247.4,4.9984]
[1765488490461,0.00332912,3247.6,3247.5,6.62605]
[1765488491859,2.47162912,3247.6,3247.5,6.62605]
[1765488492064,5.06652912,3247.6,3247.5,1.62765]
[1765488492359,5.06652912,3247.6,3247.5,0.15395]
[1765488492665,2.4683,3247.1,3247.0,3.8921]
[1765488492962,0.00332912,3247.6,3247.0,6.4721]
[1765488493159,2.4683,3247.1,3247.0,6.4721]
[1765488493765,0.00332912,3247.6,3247.5,6.4721]
[1765488493952,0.00332912,3247.6,3247.5,6.62605]
[1765488494157,2.47162912,3247.6,3247.5,6.62605]
[1765488494352,5.06652912,3247.6,3247.5,0.15395]
[1765488494763,2.47162912,3247.6,3247.5,4.04605]
[1765488494964,2.47162912,3247.6,3247.5,0.15395]
[1765488494965,5.06652912,3247.6,3247.5,0.15395]
[1765488496265,0.00332912,3247.6,3247.5,6.62605]
[1765488499068,2.47162912,3247.6,3247.5,6.62605]
[1765488499273,4.69072912,3247.6,3247.5,1.62765]
[1765488499667,7.89852912,3247.6,3247.5,0.15395]
[1765488499860,2.2154,3246.8,3246.7,0.15399]
[1765488500064,3.21112912,3247.6,3246.4,3.2078]
[1765488500065,4.5792,3246.5,3246.4,3.2078]
[1765488500269,2.2154,3246.1,3246.0,1.62772]
[1765488500569,2.2154,3245.9,3245.7,3.2078]
[1765488500872,4.5792,3245.9,3245.7,3.2078]
[1765488502673,4.5792,3245.4,3245.3,3.2078]
[1765488503473,4.5792,3245.1,3245.0,1.3791]
[1765488503664,4.58318645,3245.1,3245.0,0.00293543]
[1765488504482,4.5792,3244.5,3244.4,3.2078]
[1765488505476,4.5792,3244.5,3244.4,3.21151917]
[1765488505777,4.5792,3244.5,3244.4,0.00371917]
[1765488507677,3.2078,3244.7,3244.4,4.56111917]
[1765488507975,3.2078,3244.7,3244.6,4.5574]
[1765488509080,5.4232,3244.7,3244.6,2.228]
[1765488509470,2.2154,3244.5,3244.4,0.00371917]
[1765488509675,4.5792,3244.5,3244.4,0.00371917]
[1765488509870,7.22703832,3244.5,3244.4,0.00371917]
[1765488510174,4.5792,3244.1,3243.6,1.3791]
[1765488511078,2.2154,3243.7,3243.6,3.60992077]
[1765488511279,2.2154,3243.7,3243.6,1.38192077]
[1765488511475,0.00462228,3244.0,3243.9,4.5574]
[1765488513175,0.00462228,3244.0,3243.9,2.228]
[1765488513380,2.22002228,3244.0,3243.6,1.38192077]
[1765488513582,3.2078,3243.9,3243.8,2.38212]
[1765488514583,5.4232,3243.9,3243.8,2.38212]
[1765488514979,2.2154,3243.9,3243.8,2.38212]
[1765488515283,0.00462228,3244.0,3243.9,4.71152]
[1765488515680,2.22002228,3244.0,3243.9,0.15412]
[1765488515886,2.22002228,3244.0,3243.9,2.38212]
[1765488516484,0.00462228,3244.0,3243.9,4.71152]
[1765488516680,4.58382228,3244.0,3243.9,0.15412]
[1765488516885,4.58382228,3244.0,3243.6,1.38192077]
[1765488517080,2.2154,3243.7,3243.6,1.38192077]
[1765488517289,4.5792,3243.7,3243.6,0.00282077]
[1765488517484,0.00462228,3244.0,3243.9,4.5574]
[1765488517781,2.22002228,3244.0,3243.9,4.5574]
[1765488517981,4.5792,3243.7,3243.6,0.00282077]
[1765488519687,2.2154,3243.7,3243.6,0.00282077]
[1765488520393,2.6524606,3244.0,3243.6,4.56022077]
[1765488521188,2.6524606,3244.0,3243.7,0.15413]
[1765488521394,7.2316606,3244.0,3243.7,0.15413]
[1765488521591,2.2154,3243.8,3243.7,2.38213]
[1765488522386,2.6524606,3244.0,3243.8,0.15412]
[1765488522591,0.00462228,3244.0,3243.9,4.71152]
[1765488523094,2.22002228,3244.0,3243.9,2.38212]
[1765488523489,0.00462228,3244.0,3243.9,4.71152]
[1765488528200,3.2078,3244.6,3244.5,6.09059]
[1765488528397,5.4232,3244.6,3244.5,6.09059]
[1765488528700,5.4232,3244.6,3244.5,3.76119]
[1765488530305,3.2078,3244.6,3244.5,6.09059]
[1765488532000,0.00462228,3244.9,3244.8,4.29868]
[1765488533005,2.228e-05,3244.9,3244.8,4.29868]
[1765488533901,3.2078,3245.8,3245.5,0.15404]
[1765488534100,3.2078,3245.8,3245.7,4.1446]
[1765488534700,3.2078,3245.8,3245.7,4.29863]
[1765488534900,3.21065977,3245.8,3245.7,4.29863]
[1765488535508,0.00285977,3245.8,3245.7,4.29863]
[1765488537103,0.00285977,3245.8,3245.7,4.54079586]
[1765488537508,0.00285977,3245.8,3245.7,4.29863]
[1765488538701,0.00285977,3245.8,3245.7,4.55027996]
[1765488539622,0.00285977,3245.8,3245.7,4.29863]
[1765488541120,0.00285977,3245.8,3245.7,7.50643]
[1765488541914,3.2078,3246.6,3246.5,5.53749]
[1765488542117,7.381,3246.6,3246.5,0.15399]
[1765488542424,7.381,3246.6,3246.5,3.52379]
[1765488542921,7.383935,3246.6,3246.5,3.52619662]
[1765488543217,7.383935,3246.6,3246.5,0.00240662]
[1765488543817,0.002935,3246.6,3246.5,5.53989662]
[1765488545613,3.2078,3247.4,3247.3,4.29856]
[1765488545824,3.2078,3248.2,3247.7,4.1446]
[1765488546414,3.2078,3248.2,3248.0,5.3835]
[1765488546616,3.21060004,3248.2,3248.1,4.1446]
[1765488546818,5.32250004,3248.2,3248.1,4.1446]
[1765488547118,2.1119,3248.1,3248.0,1.2389]
[1765488547324,4.1732,3247.9,3247.8,0.00462228]
[1765488549321,4.1732,3247.1,3246.8,3.36178]
[1765488549626,3.2078,3247.4,3247.0,5.3835]
[1765488550122,5.3197,3247.4,3247.3,2.28486]
[1765488550323,5.3197,3247.4,3247.3,4.29856]
[1765488551526,3.2078,3247.4,3247.3,4.29856]
[1765488553816,0.00280004,3248.2,3248.1,4.29852]
[1765488554017,0.00280004,3248.2,3248.1,7.50632]
[1765488555021,7.3321,3248.9,3248.8,1.9943]
[1765488555222,7.3321,3248.9,3248.8,4.0445]
[1765488555924,5.2898,3248.9,3248.8,4.0445]
[1765488556126,5.29236244,3248.9,3248.8,4.04687201]
[1765488556523,4.12686244,3248.9,3248.8,4.04687201]
[1765488556828,4.12686244,3248.9,3248.8,1.99667201]
[1765488558027,4.12686244,3248.9,3248.8,0.00237201]
[1765488558921,2.08456244,3248.9,3248.8,4.04127201]
[1765488559127,4.06236244,3248.9,3248.8,1.99667201]
[1765488559328,4.06236244,3248.9,3248.8,0.00237201]
[1765488559633,4.1128,3248.6,3248.5,3.19636894]
[1765488559826,4.1128,3248.2,3248.1,0.15392]
[1765488560332,2.135,3248.2,3248.1,4.26272]
[1765488560531,2.135,3248.2,3248.1,4.26656343]
[1765488560937,4.1128,3248.2,3248.1,0.15776343]
[1765488561835,4.1128,3248.2,3248.1,4.26656343]
[1765488562134,4.1128,3248.2,3248.1,2.22196343]
[1765488562536,6.3865871,3248.2,3248.1,0.15776343]
[1765488565532,2.135,3248.2,3248.1,4.26656343]
[1765488565741,4.1128,3248.2,3248.1,0.15776343]
[1765488567434,6.3865871,3248.2,3248.1,0.15776343]
[1765488568436,4.1128,3248.2,3248.1,2.22196343]
[1765488568834,4.1128,3248.2,3248.1,4.26656343]
[1765488569343,4.1128,3248.2,3248.1,2.22196343]
[1765488569637,4.1128,3248.2,3248.1,0.15776343]
[1765488571236,4.1128,3248.1,3248.0,3.2078]
[1765488571536,4.1128,3247.3,3247.2,4.26276]
[1765488572131,2.27840938,3247.6,3247.5,5.3118]
[1765488572332,2.27840938,3247.6,3247.5,5.31494137]
[1765488572934,2.27840938,3247.6,3247.0,0.00462228]
[1765488572935,4.1128,3247.1,3247.0,0.00462228]
[1765488573132,6.3865871,3247.1,3247.0,0.00462228]
[1765488573433,4.1128,3246.2,3246.1,3.36181]
[1765488573631,4.1128,3246.2,3246.1,0.15401]
[1765488573632,6.3865871,3246.2,3246.1,0.15401]
[1765488574137,6.38967244,3246.2,3246.1,0.15673138]
[1765488574731,6.38967244,3246.2,3246.1,4.26553138]
[1765488574732,0.00308534,3246.2,3246.1,4.26553138]
[1765488574935,0.00308534,3246.2,3246.1,7.47333138]
[1765488575132,4.4087871,3247.0,3246.9,2.0642]
[1765488575338,4.4087871,3247.0,3246.9,4.1088]
[1765488575731,3.2078,3247.3,3246.9,4.1088]
[1765488575930,0.00462228,3247.6,3247.2,4.1088]
[1765488575931,2.2737871,3247.5,3247.2,4.1088]
[1765488576130,2.13962228,3247.6,3247.5,4.1088]
[1765488576332,2.1418401,3247.6,3247.5,2.0642]
[1765488578338,2.1418401,3247.6,3247.5,4.26275]
[1765488580334,0.0068401,3247.6,3247.5,5.46575]
[1765488582144,0.0068401,3247.6,3247.5,11.46575]
[1765488582342,9.5943871,3248.5,3248.4,2.0642]
[1765488582931,4.1128,3248.4,3248.3,0.15391]
[1765488583341,4.11636836,3248.4,3248.3,0.15785367]
[1765488583934,4.11636836,3248.4,3248.3,2.22205367]
[1765488584338,2.13856836,3248.4,3248.3,4.26665367]
[1765488584543,0.00356836,3248.4,3248.3,4.26665367]
[1765488585036,3.2078,3249.4,3249.3,4.26266]
[1765488585037,5.3428,3249.4,3249.3,4.26266]
[1765488585242,7.3206,3249.4,3249.3,2.21806]
[1765488586140,1.63868197,3251.4,3251.1,4.26258]
[1765488586445,1.2598,3251.5,3251.4,2.0642]
[1765488586648,5.3726,3251.5,3251.1,0.15378]
[1765488587041,3.3948,3251.5,3251.4,3.2078]
[1765488587347,3.396972,3251.5,3251.4,5.27518756]
[1765488587539,0.0030401,3251.8,3251.7,4.1088]
[1765488588339,2.1380401,3251.8,3251.5,0.15376]
[1765488588540,2.1403557,3251.8,3251.5,0.15376]
[1765488588739,2.1403557,3251.8,3251.4,3.21098756]
[1765488588740,2.135,3251.5,3251.4,3.21098756]
[1765488589241,4.3947,3251.5,3251.4,3.21098756]
[1765488589446,2.2734,3251.5,3251.4,3.21098756]
[1765488589748,4.3947,3251.5,3251.4,0.00318756]
[1765488591947,4.3947,3250.7,3250.6,3.2078]
[1765488592144,6.6684871,3250.7,3250.1,3.2078]
[1765488592740,5.772,3250.2,3250.1,3.2078]
[1765488592935,5.772,3250.2,3250.1,3.21050892]
[1765488594348,3.2078,3250.2,3249.8,0.00461503]
[1765488594644,1.3773,3252.6,3252.5,0.15371]
[1765488594839,1.3773,3253.2,3252.7,0.1537]
[1765488595034,1.3773,3253.2,3252.8,0.15369]
[1765488595249,1.3773,3253.2,3252.4,2.2737871]
[1765488595545,6.3177871,3254.6,3254.2,0.15363]
[1765488595546,3.2078,3254.6,3254.2,0.15363]
[1765488595844,0.00292186,3254.4,3254.3,0.15363]
[1765488596041,0.00292186,3254.4,3254.3,3.36143]
[1765488596947,1.3773,3255.7,3254.7,0.15361]
[1765488597144,1.3773,3255.7,3255.6,3.2078]
[1765488597847,1.38054178,3255.7,3255.6,3.2078]
[1765488599342,3.2078,3256.9,3255.6,3.36136]
[1765488599549,3.2078,3258.3,3256.8,3.2078]
[1765488599751,3.2078,3258.3,3257.7,3.2078]
[1765488599953,1.3773,3258.4,3257.2,0.24361682]
[1765488600252,1.37997268,3258.4,3257.7,0.00460737]
[1765488600947,1.37997268,3258.4,3258.3,3.2078]
[1765488601149,1.6538,3259.2,3258.3,3.2078]
[1765488601351,1.6538,3260.0,3258.9,3.2078]
[1765488601551,3.2078,3260.5,3259.8,3.2078]
[1765488601753,1.6538,3261.6,3260.4,3.2078]
[1765488601950,3.21047268,3261.3,3259.9,6.38361716]
[1765488602144,3.2144258,3261.3,3261.2,3.2078]
[1765488602349,0.00395312,3261.3,3261.2,3.2078]
[1765488602550,3.2144258,3261.3,3261.2,3.2078]
[1765488603054,0.00395312,3261.3,3261.2,3.2078]
[1765488603351,1.6538,3263.2,3261.9,3.2078]
[1765488603551,3.2078,3265.1,3263.1,3.2078]
[1765488603751,1.6538,3265.2,3264.2,3.2078]
[1765488603946,1.6538,3265.2,3264.2,9.2078]
[1765488604149,1.6538,3264.0,3263.4,0.00459982]
[1765488604350,4.86427268,3264.0,3263.4,0.00762374]
[1765488604650,1.6538,3264.0,3263.7,3.2078]
[1765488605044,1.6538,3264.0,3263.8,2.43148913]
[1765488605246,1.65630593,3265.2,3263.8,2.43148913]
[1765488605449,0.00250593,3265.2,3265.1,3.2078]
[1765488605842,3.21297861,3265.2,3265.1,3.2078]
[1765488606047,0.00250593,3265.2,3265.1,9.2078]
[1765488606250,0.00788656,3267.6,3265.1,9.2078]
[1765488606251,0.00788656,3267.6,3266.1,3.36087]
[1765488606449,0.00788656,3267.6,3265.1,23.92751875]
[1765488606450,3.42980456,3267.5,3267.3,3.2078]
[1765488606651,3.2078,3269.1,3267.3,3.2078]
[1765488606849,3.2078,3269.1,3268.3,3.2078]
[1765488607054,1.6538,3268.1,3267.4,3.33387273]
[1765488607252,1.6538,3268.1,3267.4,0.00673887]
[1765488607253,3.2078,3267.9,3267.4,0.00673887]
[1765488607449,1.65759895,3268.1,3266.1,6.57327243]
[1765488607450,3.2078,3267.5,3266.1,6.57327243]
[1765488607650,1.6538,3265.9,3265.3,3.2078]
[1765488608052,1.6538,3265.9,3265.7,3.2078]
[1765488608250,1.6538,3267.0,3265.7,3.2078]
[1765488608449,0.00451828,3266.7,3266.3,3.2078]
[1765488608848,1.6538,3267.0,3266.4,3.49446524]
[1765488609050,1.6538,3267.0,3266.3,3.2078]
[1765488609051,3.44651832,3266.5,3266.0,0.0045927]
[1765488609260,3.2078,3266.3,3266.0,0.0045927]
[1765488609654,3.2078,3266.7,3266.0,0.0045927]
[1765488609955,3.44651832,3266.1,3266.0,0.0045927]
[1765488611763,1.6538,3267.0,3266.0,3.2123927]
[1765488611960,3.43977945,3266.8,3266.5,3.2078]
[1765488612356,3.43977945,3266.6,3266.5,3.2078]
[1765488612756,1.6538,3267.0,3266.5,6.73472608]
[1765488612962,3.43977945,3266.6,3266.5,3.52692608]
[1765488613157,3.43977945,3266.6,3266.5,3.2078]
[1765488613663,1.6538,3265.9,3265.7,3.21090475]
[1765488613960,1.6538,3264.8,3264.6,3.2078]
[1765488614759,1.65696616,3264.8,3264.6,3.21154256]
[1765488615157,1.65696616,3264.8,3264.6,3.36468256]
[1765488615661,5.09215291,3264.8,3264.6,3.36468256]
[1765488615860,5.09215291,3264.8,3264.6,3.21154256]
[1765488616658,3.2078,3264.7,3264.4,0.0045927]
[1765488616859,3.2078,3264.7,3264.0,3.2078]
[1765488617057,3.2078,3264.1,3262.7,3.2078]
[1765488617256,3.2078,3264.1,3263.9,0.15317]
[1765488617655,3.43518675,3264.0,3263.9,0.00386488]
[1765488618061,0.00316616,3264.8,3264.0,1.6089]
[1765488618365,1.6538,3269.0,3265.2,0.15311]
[1765488618366,3.2078,3266.2,3265.2,0.15311]
[1765488618759,3.2078,3266.0,3265.2,0.15311]
[1765488619057,3.2078,3265.5,3264.6,3.2078]
[1765488619257,3.2078,3265.1,3264.7,0.0045927]
[1765488622467,3.43518675,3264.9,3264.7,0.0045927]
[1765488622856,6.0,3264.8,3263.9,0.00386488]
[1765488623161,2.0769,3264.0,3262.7,0.15323]
[1765488623372,3.2078,3263.3,3262.7,0.15323]
[1765488623863,3.2078,3262.9,3262.7,0.0045927]
[1765488624254,3.21106769,3262.9,3261.2,0.1533]
[1765488624565,3.2078,3262.1,3261.4,3.2078]
[1765488624756,3.2078,3261.5,3261.3,0.15329]
[1765488624963,3.2078,3261.5,3260.8,0.15332]
[1765488625263,3.21240016,3261.5,3260.8,0.00831694]
[1765488625459,3.21240016,3261.5,3261.2,3.2078]
[1765488625460,0.00460016,3261.5,3261.2,3.2078]
[1765488625659,0.00460016,3261.5,3261.3,0.15329]
[1765488625855,3.43518675,3261.4,3261.3,0.15329]
[1765488626069,1.63868197,3265.5,3261.3,6.13068408]
[1765488626270,2.0769,3266.0,3264.0,3.2078]
[1765488626463,2.0769,3266.0,3261.4,15.25329]
[1765488626464,3.20454,3265.9,3265.0,0.15312]
[1765488626666,3.20454,3265.9,3265.4,3.2078]
[1765488627061,3.20688883,3265.9,3265.4,3.21134407]
[1765488627370,3.20688883,3265.9,3265.8,3.2078]
[1765488627559,3.20688883,3265.9,3265.4,3.21134407]
[1765488627865,3.2078,3265.6,3264.9,3.2078]
[1765488628066,2.0769,3265.0,3264.4,3.2078]
[1765488628771,3.2078,3264.7,3264.4,0.00225058]
[1765488629470,2.0769,3264.0,3263.6,3.2078]
[1765488629667,5.2847,3264.0,3263.1,3.2078]
[1765488629870,2.0769,3264.0,3263.5,3.2078]
[1765488630265,2.0769,3264.0,3262.0,3.63520517]
[1765488630266,2.0769,3264.0,3263.9,3.36097]
[1765488630469,0.00459298,3264.3,3264.2,0.15316]
[1765488630666,0.00459298,3264.3,3263.9,3.21162579]
[1765488630667,3.2078,3265.4,3264.8,0.15313]
[1765488630865,3.2078,3265.4,3263.9,6.69435675]
[1765488630866,0.00234883,3265.9,3265.6,0.15309]
[1765488632271,0.00234883,3265.9,3265.7,0.15309]
[1765488633476,2.0769,3265.0,3264.9,0.15313]
[1765488635966,3.2078,3265.6,3264.7,3.2078]
[1765488636167,0.00234883,3265.9,3265.2,3.2078]
[1765488636372,0.00234883,3265.9,3265.6,3.2078]
[1765488636874,0.00234883,3265.9,3265.8,0.15308]
[1765488637269,0.79961251,3265.9,3265.8,0.15308]
[1765488637776,0.79961251,3265.9,3265.1,3.2078]
[1765488637974,2.0769,3265.2,3265.1,3.2078]
[1765488638871,2.8745041,3265.2,3265.1,3.2078]
[1765488640068,0.00234883,3265.9,3265.5,0.1531]
[1765488640385,0.00234883,3265.9,3265.1,3.2078]
[1765488640386,2.0769,3265.2,3265.1,3.2078]
[1765488640874,2.87486043,3265.2,3265.1,3.04003901]
[1765488641274,2.87486043,3265.2,3265.0,0.15312]
[1765488641474,0.79796043,3265.1,3265.0,0.15312]
[1765488644376,6.79796043,3265.1,3265.0,0.15312]
[1765488644681,6.79796043,3265.1,3264.6,3.21239298]
[1765488644885,0.79796043,3265.0,3264.6,3.21239298]
[1765488645182,0.79796043,3264.9,3264.6,3.21239298]
[1765488645376,0.79796043,3264.8,3264.6,3.21239298]
[1765488645577,0.79796043,3264.7,3264.6,3.21239298]
[1765488645975,0.79796043,3264.7,3264.6,0.00459298]
[1765488646571,0.79796043,3264.7,3264.6,0.15773298]
[1765488646779,5.42126727,3266.8,3264.6,0.15773298]
[1765488646780,3.2078,3265.4,3265.3,0.15311]
[1765488647179,3.2078,3266.2,3265.8,0.15308]
[1765488647886,2.08149298,3266.1,3265.8,0.15308]
[1765488648081,0.80104433,3265.9,3265.8,0.15308]
[1765488648981,0.00234883,3265.9,3265.8,0.15308]
[1765488649873,0.80079676,3265.9,3265.8,0.15308]
[1765488650078,6.80079676,3265.9,3265.2,3.2078]
[1765488650275,3.2078,3265.7,3265.2,3.2078]
[1765488650477,0.79844793,3265.6,3265.2,3.2078]
[1765488650779,0.79844793,3265.6,3265.0,0.15312]
[1765488650780,2.4109,3265.2,3264.6,3.21239298]
[1765488650986,0.79844793,3265.1,3264.6,3.21239298]
[1765488651181,0.79844793,3265.0,3264.6,3.21239298]
[1765488651382,0.79844793,3264.9,3264.6,3.21239298]
[1765488651583,0.79844793,3264.8,3264.6,3.21239298]
[1765488651883,5.6187,3265.2,3264.6,3.21239298]
[1765488652088,4.00643798,3265.1,3264.6,3.21239298]
[1765488652282,0.79863798,3265.0,3264.6,3.21239298]
[1765488652476,0.79863798,3264.9,3264.6,3.21239298]
[1765488652686,2.4109,3265.2,3264.9,0.15312]
[1765488652886,0.79861439,3265.1,3264.9,0.15312]
[1765488653087,0.79861439,3265.0,3264.9,0.15312]
[1765488653391,3.2078,3265.3,3264.6,3.21239298]
[1765488653587,3.2078,3265.3,3265.2,0.15311]
[1765488654491,3.2078,3265.3,3264.6,3.21239298]
[1765488654492,3.2078,3265.8,3265.0,3.2078]
[1765488654694,0.79921789,3265.7,3265.0,3.2078]
[1765488654883,3.2078,3265.8,3265.7,0.15309]
[1765488655090,10.60734883,3265.9,3265.8,0.15308]
[1765488655091,0.00234883,3265.9,3265.8,0.15308]
[1765488655991,3.2078,3266.7,3266.6,0.15305]
[1765488656190,4.00817357,3266.7,3266.6,0.15305]
[1765488657290,3.2078,3266.7,3266.6,0.15305]
[1765488657590,2.4109,3267.9,3266.6,9.2078]
[1765488657894,2.4109,3267.9,3267.8,3.2078]
[1765488658100,3.2110628,3267.9,3267.8,3.2078]
[1765488658390,3.2110628,3267.9,3266.4,1.5704]
[1765488658391,3.2078,3268.5,3267.7,0.15299]
[1765488658695,0.84640342,3268.4,3267.9,0.15299]
[1765488658886,5.6187,3268.0,3267.4,3.2078]
[1765488659086,2.4109,3267.2,3266.5,3.2078]
[1765488659591,3.2078,3267.9,3267.1,3.2078]
[1765488659893,2.4109,3268.0,3267.4,0.15301]
[1765488660090,2.4109,3268.0,3267.5,3.2078]
[1765488660397,2.4109,3268.0,3267.1,3.2078]
[1765488660588,3.2078,3268.7,3267.9,3.2078]
[1765488660790,11.767,3270.1,3268.3,3.2078]
[1765488660791,3.2078,3269.2,3268.3,3.2078]
[1765488660990,3.2078,3269.2,3267.0,1.4508]
[1765488660991,5.6187,3268.8,3267.9,3.2078]
[1765488661396,3.2078,3268.2,3267.5,3.3608]
[1765488661592,3.2078,3268.2,3267.5,3.2078]
[1765488661892,3.2078,3268.6,3267.7,3.2078]
[1765488662290,5.6187,3268.8,3267.9,0.15298]
[1765488662491,3.2078,3268.4,3268.0,0.15298]
[1765488662691,2.4109,3267.9,3267.3,0.15301]
[1765488662902,3.2078,3267.4,3266.5,0.15305]
[1765488663100,3.2078,3267.4,3266.4,3.2078]
[1765488663101,3.2078,3267.4,3266.6,0.15305]
[1765488663487,3.2078,3267.2,3266.6,0.15305]
[1765488663889,2.4109,3267.0,3266.6,0.15305]
[1765488664096,2.4109,3267.0,3266.9,0.15303]